fUSD/lending_fUSD_20260408
["ID","MTS","AMOUNT","RATE_DAILY","PERIOD"]
[420011593,1775611848299,-151.0,0.00015228,2]
[420011594,1775611848310,-151.0,0.00015228,2]
[420011595,1775611848320,-151.0,0.00015228,2]
[420011596,1775611848777,-151.0,0.00015228,2]
[420011597,1775611848789,-151.0,0.00015228,2]
[420011598,1775611848799,-151.0,0.00015228,2]
[420011599,1775611848810,-151.0,0.00015228,2]
[420011600,1775611848820,-151.0,0.00015228,2]
[420011601,1775611848830,-151.0,0.00015228,2]
[420011602,1775611848841,-234.165641,0.00015228,2]
[420011603,1775611848852,-150.0,0.0001523,2]
[420011604,1775611848863,-150.0,0.00015234,2]
[420011605,1775611848873,-160.0,0.00015237,2]
[420011606,1775611848883,-23937.7492054,0.00015257,2]
[420011607,1775611848893,-16793.55489528,0.00015257,2]
[420011608,1775611848904,-150.0,0.0001526,2]
[420011609,1775611848915,-174.71,0.00015261,2]
[420011610,1775611848925,-150.0,0.00015264,2]
[420011611,1775611848936,-985.75,0.00015267,2]
[420011612,1775611848946,-150.0,0.0001527,2]
[420011613,1775611848956,-8882.6885148,0.00015283,2]
[420011614,1775611848966,-500.0,0.00015283,2]
[420011615,1775611848976,-151.0,0.00015283,2]
[420011616,1775611848986,-151.0,0.00015286,2]
[420011617,1775611848997,-151.0,0.00015286,2]
[420011618,1775611849008,-151.0,0.00015286,2]
[420011619,1775611849019,-180.558216,0.00015286,2]
[420011620,1775611849029,-232.075827,0.00015286,2]
[420011621,1775611849040,-232.075827,0.00015286,2]
[420011622,1775611849051,-151.0,0.00015286,2]
[420011623,1775611849060,-232.075827,0.00015286,2]
[420011624,1775611849071,-151.0,0.00015286,2]
[420011625,1775611849081,-232.075827,0.00015286,2]
[420011626,1775611849091,-151.0,0.00015286,2]
[420011627,1775611849102,-160.322266,0.00015286,2]
[420011628,1775611849113,-151.0,0.00015286,2]
[420011629,1775611849123,-151.0,0.00015286,2]
[420011630,1775611849135,-97969.15,0.000153,2]
[420011632,1775611849145,-151.0,0.000153,2]
[420011633,1775611849155,-151.0,0.000153,2]
[420011634,1775611849165,-151.0,0.000153,2]
[420011635,1775611849175,-151.0,0.000153,2]
[420011636,1775611849186,-453.46,0.00015301,2]
[420011637,1775611849196,-174.71,0.00015302,2]
[420011638,1775611849206,-168.15538537,0.00015315,2]
[420011639,1775611849216,-150.0,0.00015315,2]
[420011640,1775611849226,-150.0,0.00015315,2]
[420011641,1775611849237,-150.0,0.00015315,2]
[420011642,1775611849248,-155.27197355,0.00015315,2]
[420011643,1775611849259,-150.0,0.00015315,2]
[420011644,1775611849269,-150.0,0.00015315,2]
[420011645,1775611849280,-207.58250816,0.00015315,2]
[420011646,1775611849289,-154.21213872,0.00015315,2]
[420011647,1775611849299,-151.68583305,0.00015315,2]
[420011648,1775611849309,-298.07663487,0.0001532,2]
[420011649,1775611849319,-361.65281077,0.0001532,2]
[420011650,1775611849329,-291.69284402,0.0001532,2]
[420011651,1775611849339,-1020.757892,0.0001532,2]
[420011652,1775611849349,-561.36116463,0.0001532,2]
[420011653,1775611849359,-172.67,0.00015329,2]
[420011654,1775611849369,-9211.34798985,0.00015338,2]
[420011655,1775611849379,-500.0,0.00015338,2]
[420011656,1775611849389,-151.0,0.00015338,2]
[420011657,1775611849399,-1500.0,0.00015342,2]
[420011658,1775611849409,-2000.0,0.00015342,2]
[420011659,1775611849419,-1933.85994281,0.00015342,2]
[420011660,1775611849428,-262.51968471,0.00015342,2]
[420011661,1775611849439,-2000.0,0.00015342,2]
[420011662,1775611849449,-500.0,0.00015359,2]
[420011663,1775611849459,-500.0,0.00015359,2]
[420011664,1775611849469,-500.0,0.00015359,2]
[420011665,1775611849478,-500.0,0.00015359,2]
[420011666,1775611849488,-500.0,0.00015359,2]
[420011667,1775611849498,-163.0,0.0001536,2]
[420011668,1775611849508,-1573.0,0.0001536,2]
[420011669,1775611849517,-1950.0,0.0001536,2]
[420011670,1775611849527,-1950.0,0.0001536,2]
[420011671,1775611849538,-1950.0,0.0001536,2]
[420011672,1775611849547,-1950.0,0.0001536,2]
[420011673,1775611849557,-1950.0,0.0001536,2]
[420011674,1775611849566,-1950.0,0.0001536,2]
[420011675,1775611849576,-1950.0,0.0001536,2]
[420011676,1775611849587,-1950.0,0.0001536,2]
[420011677,1775611849597,-1950.0,0.0001536,2]
[420011678,1775611849607,-1611.0,0.0001536,2]
[420011679,1775611849617,-5888.0,0.00015377,2]
[420011680,1775611849626,-9552.16786547,0.00015393,2]
[420011681,1775611849637,-500.0,0.00015393,2]
[420011682,1775611849647,-151.0,0.00015393,2]
[420011683,1775611849657,-155.4903749,0.00015409,2]
[420011684,1775611849667,-6108.61975625,0.00015417,2]
[420011685,1775611849676,-151.0,0.00015426,2]
[420011686,1775611849686,-151.0,0.00015426,2]
[420011687,1775611849696,-191.016655,0.00015426,2]
[420011688,1775611849705,-2400.21405685,0.00015448,2]
[420011689,1775611849715,-500.0,0.00015448,2]
[420011690,1775611849725,-151.0,0.00015448,2]
[420011691,1775611849735,-178.512949,0.00015453,2]
[420011692,1775611849744,-151.0,0.00015453,2]
[420011693,1775611849754,-457.963478,0.00015453,2]
[420011694,1775611849764,-151.0,0.00015453,2]
[420011695,1775611849774,-457.963478,0.00015453,2]
[420011696,1775611849783,-151.0,0.00015453,2]
[420011697,1775611849794,-178.512949,0.00015453,2]
[420011698,1775611849804,-457.963478,0.00015453,2]
[420011699,1775611849814,-151.0,0.00015453,2]
[420011700,1775611849824,-151.0,0.00015453,2]
[420011701,1775611849834,-178.512949,0.00015453,2]
[420011702,1775611849845,-151.0,0.00015453,2]
[420011703,1775611849855,-457.963478,0.00015453,2]
[420011704,1775611849866,-1795.066,0.00015453,2]
[420011705,1775611849876,-154.733021,0.00015453,2]
[420011706,1775611849886,-178.512949,0.00015453,2]
[420011707,1775611849897,-1795.066,0.00015453,2]
[420011708,1775611849906,-187.606741,0.00015453,2]
[420011709,1775611849916,-1795.066,0.00015453,2]
[420011710,1775611849926,-231.359488,0.00015453,2]
[420011711,1775611849936,-187.606741,0.00015453,2]
[420011712,1775611849945,-1795.066,0.00015453,2]
[420011713,1775611849955,-187.606741,0.00015453,2]
[420011714,1775611849965,-151.0,0.00015453,2]
[420011715,1775611849974,-151.0,0.00015453,2]
[420011716,1775611849984,-187.606741,0.00015453,2]
[420011717,1775611849993,-151.0,0.00015453,2]
[420011718,1775611850002,-151.0,0.00015453,2]
[420011719,1775611850012,-151.0,0.00015453,2]
[420011720,1775611850023,-4048.33,0.00015471,2]
[420011721,1775611850034,-7186.11,0.00015471,2]
[420011722,1775611850045,-610.55,0.00015471,2]
[420011723,1775611850057,-7800.0,0.000155,5]
[420011724,1775611850067,-500.0,0.00015503,2]
[420011725,1775611850078,-151.0,0.00015503,2]
[420011726,1775611850088,-1100.0,0.0001552,2]
[420011727,1775611850099,-1100.0,0.0001552,2]
[420011728,1775611850108,-1100.0,0.0001552,2]
[420011729,1775611850118,-1100.0,0.0001552,2]
[420011730,1775611850127,-1100.0,0.0001552,2]
[420011731,1775611850137,-1100.0,0.0001552,2]
[420011732,1775611850147,-1100.0,0.0001552,2]
[420011733,1775611850157,-1100.0,0.0001552,2]
[420011734,1775611850167,-1100.0,0.0001552,2]
[420011735,1775611850176,-743.0,0.0001552,2]
[420011736,1775611850185,-5888.0,0.0001552,2]
[420011737,1775611850195,-985.75,0.00015541,2]
[420011738,1775611850205,-700.0,0.00015556,2]
[420011739,1775611850215,-500.0,0.00015558,2]
[420011740,1775611850224,-151.0,0.00015558,2]
[420011741,1775611850234,-302.41,0.00015596,2]
[420011742,1775611850245,-10000.0,0.000156,2]
[420011743,1775611850255,-151.0,0.000156,2]
[420011744,1775611850264,-151.0,0.000156,2]
[420011745,1775611850274,-151.0,0.000156,2]
[420011746,1775611850284,-161.207016,0.000156,2]
[420011747,1775611850294,-184.132287,0.000156,2]
[420011748,1775611850304,-151.0,0.000156,2]
[420011749,1775611850314,-151.0,0.000156,2]
[420011750,1775611850324,-151.0,0.000156,2]
[420011751,1775611850334,-151.0,0.000156,2]
[420011752,1775611850345,-151.0,0.000156,2]
[420011753,1775611850354,-151.0,0.000156,2]
[420011754,1775611850364,-151.0,0.000156,2]
[420011755,1775611850374,-151.0,0.000156,2]
[420011756,1775611850383,-151.0,0.000156,2]
[420011757,1775611850393,-9700.0,0.000156,5]
[420011758,1775611850403,-23937.7492054,0.000156,2]
[420011759,1775611850413,-16793.55489528,0.000156,2]
[420011760,1775611850423,-14011.01047314,0.000156,2]
[420011761,1775611850433,-201.65583435,0.000156,2]
[420011762,1775611850443,-400.0,0.00015601,2]
[420011763,1775611850453,-500.0,0.00015606,2]
[420011764,1775611850463,-500.0,0.00015606,2]
[420011765,1775611850473,-400.0,0.00015606,2]
[420011766,1775611850482,-280.43,0.00015606,2]
[420011767,1775611850492,-500.0,0.00015613,2]
[420011768,1775611850503,-151.0,0.00015613,2]
[420011769,1775611850513,-400.0,0.00015619,2]
[420011770,1775611850523,-400.0,0.00015619,2]
[420011771,1775611850533,-268.71,0.00015623,2]
[420011772,1775611850544,-400.0,0.00015624,2]
[420011773,1775611850554,-400.0,0.00015624,2]
[420011774,1775611850563,-400.0,0.00015624,2]
[420011775,1775611850573,-322.89,0.00015624,2]
[420011776,1775611850583,-400.0,0.00015628,2]
[420011777,1775611850593,-400.0,0.00015629,2]
[420011778,1775611850603,-400.0,0.00015629,2]
[420011779,1775611850613,-400.0,0.00015629,2]
[420011780,1775611850623,-400.0,0.00015629,2]
[420011781,1775611850632,-358.0,0.00015629,2]
[420011782,1775611850642,-400.0,0.00015632,2]
[420011783,1775611850652,-204.61,0.00015632,2]
[420011784,1775611850663,-250.0,0.00015644,2]
[420011785,1775611850673,-319.0,0.00015647,2]
[420011786,1775611850683,-638.01,0.00015652,2]
[420011787,1775611850693,-319.0,0.00015656,2]
[420011788,1775611850703,-172.67,0.00015664,2]
[420011789,1775611850712,-500.0,0.00015668,2]
[420011790,1775611850723,-151.0,0.00015668,2]
[420011791,1775611850733,-180.21187415,0.00015673,2]
[420011792,1775611850742,-500.0,0.00015673,2]
[420011793,1775611850752,-500.0,0.00015673,2]
[420011794,1775611850762,-500.0,0.00015673,2]
[420011795,1775611850772,-500.0,0.00015673,2]
[420011796,1775611850782,-500.0,0.00015673,2]
[420011797,1775611850793,-628.06797502,0.00015673,2]
[420011798,1775611850803,-500.27198937,0.00015673,2]
[420011799,1775611850813,-500.0,0.00015673,2]
[420011800,1775611850822,-286.56433231,0.00015673,2]
[420011801,1775611850832,-500.0,0.00015673,2]
[420011802,1775611850842,-500.0,0.00015673,2]
[420011803,1775611850853,-164.39680661,0.00015673,2]
[420011804,1775611850863,-163.84182296,0.00015673,2]
[420011805,1775611850874,-501.02973938,0.00015673,2]
[420011806,1775611850884,-500.0,0.00015673,2]
[420011807,1775611850894,-500.0,0.00015673,2]
[420011808,1775611850904,-500.0,0.00015673,2]
[420011809,1775611850914,-500.0,0.00015673,2]
[420011810,1775611850924,-500.0,0.00015673,2]
[420011811,1775611850934,-500.0,0.00015673,2]
[420011812,1775611850944,-500.0,0.00015673,2]
[420011813,1775611850954,-500.0,0.00015673,2]
[420011814,1775611850965,-500.0,0.00015673,2]
[420011815,1775611850975,-500.0,0.00015673,2]
[420011816,1775611850985,-500.0,0.00015673,2]
[420011817,1775611850995,-500.0,0.00015673,2]
[420011818,1775611851006,-290.6020449,0.00015673,2]
[420011819,1775611851016,-500.0,0.00015673,2]
[420011820,1775611851026,-500.0,0.00015673,2]
[420011821,1775611851035,-288.2071777,0.00015673,2]
[420011822,1775611851045,-500.0,0.00015673,2]
[420011823,1775611851055,-244.01107124,0.00015673,2]
[420011824,1775611851065,-474.57359568,0.00015673,2]
[420011825,1775611851075,-500.0,0.00015673,2]
[420011826,1775611851085,-500.0,0.00015673,2]
[420011827,1775611851096,-500.0,0.00015673,2]
[420011828,1775611851105,-506.0,0.00015673,4]
[420011829,1775611851118,-251.75247839,0.0001569,2]
[420011830,1775611851128,-251.75247839,0.0001569,2]
[420011831,1775611851138,-666.0,0.00015694,2]
[420011832,1775611851148,-669.50411723,0.00015694,2]
[420011833,1775611851158,-3438.8200844,0.00015695,2]
[420011834,1775611851169,-22110.6775232,0.00015695,2]
[420011835,1775611851180,-151.0,0.00015695,2]
[420011836,1775611851322,-151.0,0.00015695,2]
[420011837,1775611851332,-16631.5180462,0.00015695,2]
[420011838,1775611851343,-325746.3564112,0.00015695,2]
[420011839,1775611851352,-151.0,0.00015695,2]
[420011840,1775611851362,-151.0,0.00015695,2]
[420011841,1775611851371,-154.981614,0.00015695,2]
[420011842,1775611851380,-151.0,0.00015695,2]
[420011843,1775611851390,-154.981614,0.00015695,2]
[420011844,1775611851399,-154.981614,0.00015695,2]
[420011845,1775611851409,-154.981614,0.00015695,2]
[420011846,1775611851419,-151.0,0.00015695,2]
[420011847,1775611851428,-151.0,0.00015695,2]
[420011848,1775611851438,-151.0,0.00015695,2]
[420011849,1775611851448,-151.0,0.00015695,2]
[420011850,1775611851458,-151.0,0.00015695,2]
[420011851,1775611851468,-151.0,0.00015695,2]
[420011852,1775611851477,-151.0,0.00015695,2]
[420011854,1775611851487,-151.0,0.00015697,2]
[420011855,1775611851496,-500.0,0.00015699,2]
[420011856,1775611851506,-500.0,0.00015699,2]
[420011857,1775611851515,-500.0,0.00015699,2]
[420011858,1775611851525,-500.0,0.00015699,2]
[420011859,1775611851534,-500.0,0.00015699,2]
[420011860,1775611851544,-500.0,0.00015699,2]
[420011861,1775611851553,-500.0,0.00015699,2]
[420011862,1775611851563,-500.0,0.00015699,2]
[420011863,1775611851572,-500.0,0.00015699,2]
[420011864,1775611851581,-500.0,0.00015699,2]
[420011865,1775611851592,-500.0,0.00015699,2]
[420011866,1775611851602,-500.0,0.00015699,2]
[420011867,1775611851612,-500.0,0.00015699,2]
[420011868,1775611851621,-282.16,0.00015699,2]
[420011869,1775611851631,-500.0,0.00015699,2]
[420011870,1775611851641,-500.0,0.00015699,2]
[420011871,1775611851651,-500.0,0.00015699,2]
[420011872,1775611851662,-500.0,0.00015699,2]
[420011873,1775611851672,-500.0,0.00015699,2]
[420011874,1775611851681,-500.0,0.00015699,2]
[420011875,1775611851691,-500.0,0.00015699,2]
[420011876,1775611851701,-500.0,0.00015699,2]
[420011877,1775611851710,-173.73549079,0.00015699,2]
[420011878,1775611851720,-500.0,0.00015699,2]
[420011879,1775611851730,-500.0,0.00015699,2]
[420011880,1775611851740,-500.0,0.00015699,2]
[420011881,1775611851750,-500.0,0.00015699,2]
[420011882,1775611851760,-500.0,0.00015699,2]
[420011883,1775611851770,-500.0,0.00015699,2]
[420011884,1775611851779,-500.0,0.00015699,2]
[420011885,1775611851790,-500.0,0.00015699,2]
[420011886,1775611851800,-500.0,0.00015699,2]
[420011887,1775611851809,-500.0,0.00015699,2]
[420011888,1775611851818,-500.0,0.00015699,2]
[420011889,1775611851828,-500.0,0.00015699,2]
[420011890,1775611851837,-500.0,0.00015699,2]
[420011891,1775611851847,-500.0,0.00015699,2]
[420011892,1775611851858,-500.0,0.00015699,2]
[420011893,1775611851868,-500.0,0.00015699,2]
[420011894,1775611851878,-500.0,0.00015699,2]
[420011895,1775611851887,-500.0,0.00015699,2]
[420011896,1775611851897,-366.03,0.00015699,2]
[420011897,1775611851906,-458.34,0.00015699,2]
[420011898,1775611851916,-500.0,0.00015699,2]
[420011899,1775611851926,-500.0,0.00015699,2]
[420011900,1775611851936,-500.0,0.00015699,2]
[420011901,1775611851946,-500.0,0.00015699,2]
[420011902,1775611851955,-500.0,0.00015699,2]
[420011903,1775611851965,-288.95,0.00015699,2]
[420011904,1775611851975,-500.0,0.00015699,2]
[420011905,1775611851984,-500.0,0.00015699,2]
[420011906,1775611851993,-500.0,0.00015699,2]
[420011907,1775611852003,-500.0,0.00015699,2]
[420011908,1775611852013,-500.0,0.00015699,2]
[420011909,1775611852022,-500.0,0.00015699,2]
[420011910,1775611852032,-500.0,0.00015699,2]
[420011911,1775611852042,-500.0,0.00015699,2]
[420011912,1775611852051,-500.0,0.00015699,2]
[420011913,1775611852061,-500.0,0.00015699,2]
[420011914,1775611852071,-500.0,0.00015699,2]
[420011915,1775611852080,-500.0,0.00015699,2]
[420011916,1775611852090,-635.54,0.00015699,2]
[420011917,1775611852099,-251.94,0.00015699,2]
[420011918,1775611852109,-500.0,0.00015699,2]
[420011919,1775611852119,-500.0,0.00015699,2]
[420011920,1775611852129,-500.0,0.00015699,2]
[420011921,1775611852139,-500.0,0.00015699,2]
[420011922,1775611852149,-500.0,0.00015699,2]
[420011923,1775611852159,-500.0,0.00015699,2]
[420011924,1775611852169,-500.0,0.00015699,2]
[420011925,1775611852179,-500.0,0.00015699,2]
[420011926,1775611852189,-500.0,0.00015699,2]
[420011927,1775611852199,-151.0,0.00015699,2]
[420011928,1775611852209,-151.0,0.00015699,2]
[420011929,1775611852219,-181.768537,0.00015699,2]
[420011930,1775611852228,-151.0,0.00015699,2]
[420011931,1775611852238,-151.0,0.00015699,2]
[420011932,1775611852247,-151.0,0.00015699,2]
[420011933,1775611852256,-151.0,0.00015699,2]
[420011934,1775611852266,-151.0,0.00015699,2]
[420011935,1775611852275,-500.0,0.00015699,2]
[420011936,1775611852285,-500.0,0.00015699,2]
[420011937,1775611852295,-500.0,0.00015699,2]
[420011938,1775611852304,-530.72,0.00015699,2]
[420011939,1775611852314,-1099308.78490977,0.000157,2]
[420011940,1775611853906,-221.372079,0.0001371,7]
[420011941,1775611853917,-1347.0,0.00015621,2]
[420011942,1775611853927,-4131.62302983,0.000157,2]
[420011943,1775611854197,-160.0,0.0001371,2]
[420011944,1775611854208,-4570.97595325,0.000157,2]
[420011945,1775611854221,-33772.68626198,0.000157,2]
[420011946,1775611854232,-658639.58536124,0.000157,2]
[420011947,1775611854242,-2000.0,0.000157,2]
[420011948,1775611854252,-194190.96292587,0.000157,2]
[420011949,1775611854265,-500063.33345041,0.000157,2]
[420011950,1775611869940,3282.0,0.000111,5]
[420011951,1775611941025,276.57352178,9.012e-05,4]
[420011952,1775612222159,320.0,0.0001159,2]
[420011953,1775612284167,320.0,0.0001159,2]
[420011954,1775612346192,320.0,0.0001159,2]
[420011955,1775612408230,320.0,0.0001159,2]
[420011956,1775612470262,320.0,0.0001159,2]
[420011957,1775612533547,320.0,0.0001159,2]
[420011958,1775612540153,201.60184993,0.0001159,2]
[420011959,1775612542971,151.0,0.0001159,2]
[420011960,1775612545250,151.0,0.0001159,2]
[420011961,1775612545350,151.0,0.0001159,2]
[420011962,1775612545457,151.0,0.0001159,2]
[420011963,1775612545606,151.0,0.0001159,2]
[420011964,1775612546201,151.0,0.0001159,2]
[420011965,1775612546801,151.0,0.0001159,2]
[420011966,1775612547424,151.0,0.0001159,2]
[420011967,1775612548022,151.0,0.0001159,2]
[420011968,1775612548625,151.0,0.0001159,2]
[420011969,1775612549232,151.0,0.0001159,2]
[420011970,1775612549835,161.57429801,0.0001159,2]
[420011971,1775612594331,320.0,0.0001159,2]
[420011972,1775612656360,320.0,0.0001159,2]
[420011973,1775612718428,320.0,0.0001159,2]
[420011974,1775612780406,320.0,0.0001159,2]
[420011975,1775612842760,320.0,0.0001159,2]
[420011976,1775612904468,320.0,0.0001159,2]
[420011977,1775612972060,512.0,0.000104,5]
[420011984,1775613032451,-175.0,0.0001159,2]
[420011985,1775613032464,-175.0,0.0001159,2]
[420011986,1775613032474,-174.0,0.0001159,2]
[420011987,1775613032485,-160.0,0.0001159,2]
[420011988,1775613032495,-143.70380581,0.00011638,2]
[420011989,1775613032507,-6.29619419,0.00011638,2]
[420011990,1775613032517,-299.57,0.00011685,2]
[420011991,1775613032527,-164.0,0.00011693,2]
[420011992,1775613032536,-481.0,0.00011693,2]
[420011993,1775613032547,-300.0,0.00011693,2]
[420011994,1775613032557,-300.0,0.00011693,2]
[420011995,1775613032566,-300.0,0.00011693,2]
[420011996,1775613032577,-1200.0,0.00011693,2]
[420011997,1775613032587,-4916.41384703,0.00011694,2]
[420011998,1775613032597,-252.5045904,0.00011694,2]
[420011999,1775613032608,-180.53,0.00011797,2]
[420012000,1775613032619,-3277.8,0.00011832,2]
[420012001,1775613032629,-4951.7170265,0.00012097,2]
[420012002,1775613032640,-166.67,0.00012119,2]
[420012003,1775613032651,-251.75247839,0.00012307,2]
[420012004,1775613032661,-258949.90681811,0.00012317,2]
[420012005,1775613032674,-7054.13029996,0.00012317,2]
[420012006,1775613032712,-2649.0,0.00012317,2]
[420012007,1775613032724,-250.0,0.00012317,2]
[420012008,1775613032735,-2000.0,0.00012317,2]
[420012011,1775613038876,-500.0,0.00012316,2]
[420012012,1775613038887,-330.28739971,0.00012316,2]
[420012013,1775613038896,-184.74938111,0.00012316,2]
[420012014,1775613038906,-1757521.56658193,0.00012317,2]
[420012015,1775613038916,-299.57,0.00012334,2]
[420012016,1775613038927,-1922.0,0.00012348,2]
[420012017,1775613038937,-1117.0,0.00012372,2]
[420012018,1775613038947,-976.0,0.00012412,2]
[420012019,1775613038957,-283.0,0.00012412,2]
[420012020,1775613038967,-292.822,0.00012416,2]
[420012021,1775613038978,-5190.264,0.00012416,2]
[420012022,1775613038989,-1381.46419672,0.00012417,2]
[420012023,1775613038999,-263.0,0.00012437,2]
[420012024,1775613039009,-150.0,0.00012472,2]
[420012025,1775613039019,-24954.31464177,0.00012473,2]
[420012026,1775613039029,-16247.19863294,0.00012473,2]
[420012028,1775613039039,-5350.56182375,0.00012473,2]
[420012030,1775613039050,-150.0,0.000125,2]
[420012032,1775613039060,-9999.99,0.00012507,2]
[420012034,1775613039071,-22049.9,0.00012507,2]
[420012037,1775613039081,-29999.99,0.00012507,2]
[420012039,1775613039091,-151.0,0.00012514,2]
[420012041,1775613039101,-151.0,0.00012514,2]
[420012043,1775613039112,-151.0,0.00012514,2]
[420012045,1775613039121,-2487.259,0.00012516,2]
[420012047,1775613039132,-1282.88594322,0.00012516,3]
[420012049,1775613039142,-1117.02022933,0.00012516,3]
[420012051,1775613039153,-171.66914018,0.00012573,2]
[420012054,1775613039163,-500.32841888,0.00012573,2]
[420012057,1775613039173,-2300.0,0.000127,4]
[420012060,1775613039183,-735.0,0.00012723,2]
[420012062,1775613039193,-193.41865489,0.00012749,2]
[420012064,1775613039203,-5000.0,0.00012749,2]
[420012066,1775613039213,-606.11742291,0.00012749,2]
[420012068,1775613039223,-250.0,0.00012749,2]
[420012070,1775613039233,-5000.0,0.00012749,2]
[420012072,1775613039243,-300.60862761,0.00012749,2]
[420012074,1775613039255,-500.0,0.00012749,2]
[420012076,1775613039265,-4600.0,0.000128,4]
[420012077,1775613039277,-24954.31464176,0.0001282,2]
[420012079,1775613039287,-16247.19863292,0.0001282,2]
[420012082,1775613039298,-420.0,0.0001284,2]
[420012083,1775613039308,-420.0,0.0001284,2]
[420012084,1775613039319,-1680.0,0.00012862,2]
[420012085,1775613039329,-351.02,0.0001289,2]
[420012086,1775613039340,-7000.0,0.000129,4]
[420012087,1775613039349,-175.0,0.00012959,3]
[420012088,1775613039359,-5350.56182368,0.00012963,2]
[420012089,1775613039370,-299.57,0.00012984,2]
[420012090,1775613039380,-500.0,0.00013023,2]
[420012091,1775613039391,-1600.0,0.00013094,2]
[420012092,1775613039401,-166.67,0.00013119,2]
[420012093,1775613039410,-24954.31464176,0.00013168,2]
[420012094,1775613039421,-16247.19863292,0.00013168,2]
[420012095,1775613039431,-503.45185304,0.00013297,2]
[420012096,1775613039440,-3240.0,0.00013425,2]
[420012097,1775613039450,-500.0,0.00013446,2]
[420012098,1775613039460,-500.0,0.00013446,2]
[420012099,1775613039470,-500.0,0.00013446,2]
[420012100,1775613039480,-505.03483574,0.00013446,2]
[420012101,1775613039491,-501.34119633,0.00013446,2]
[420012102,1775613039501,-264.46947255,0.00013446,2]
[420012103,1775613039510,-500.0,0.00013446,2]
[420012104,1775613039520,-5350.56182368,0.00013452,2]
[420012105,1775613039530,-24954.31464176,0.00013515,2]
[420012106,1775613039539,-16247.19863292,0.00013515,2]
[420012107,1775613039549,-255.0,0.0001357,2]
[420012108,1775613039559,-299.57,0.00013633,2]
[420012109,1775613039569,-163.79817169,0.00013673,2]
[420012110,1775613039579,-305.57025194,0.00013673,2]
[420012111,1775613039589,-500.0,0.00013673,2]
[420012112,1775613039599,-167.81176145,0.00013673,2]
[420012113,1775613039608,-502.90129803,0.00013698,2]
[420012114,1775613039618,-500.0,0.00013698,2]
[420012115,1775613039629,-500.0,0.00013698,2]
[420012116,1775613039639,-500.0,0.00013698,2]
[420012117,1775613039650,-500.0,0.00013698,2]
[420012118,1775613039659,-501.26898982,0.00013698,2]
[420012119,1775613039669,-500.0,0.00013698,2]
[420012120,1775613039679,-500.0,0.00013698,2]
[420012121,1775613039689,-500.0,0.00013698,2]
[420012122,1775613039699,-500.0,0.00013698,2]
[420012123,1775613039709,-500.0,0.00013698,2]
[420012124,1775613039720,-504.74596653,0.00013698,2]
[420012125,1775613039730,-500.0,0.00013698,2]
[420012126,1775613039740,-500.0,0.00013698,2]
[420012127,1775613039749,-500.0,0.00013698,2]
[420012128,1775613039759,-500.0,0.00013698,2]
[420012129,1775613039769,-500.0,0.00013698,2]
[420012130,1775613039778,-500.0,0.00013698,2]
[420012131,1775613039789,-500.0,0.00013698,2]
[420012132,1775613039799,-500.0,0.00013698,2]